fUST/lending_fUST_20241229
["ID","MTS","AMOUNT","RATE_DAILY","PERIOD"]
[347007842,1735464646570,-500.0,0.00010919,2]
[347007843,1735464646578,-500.0,0.00010919,2]
[347007844,1735464646587,-500.0,0.00010919,2]
[347007845,1735464646598,-500.0,0.00010919,2]
[347007846,1735464646607,-500.0,0.00010919,2]
[347007847,1735464646616,-500.0,0.00010919,2]
[347007848,1735464646625,-540.67,0.00010919,2]
[347007849,1735464646634,-500.0,0.00010919,2]
[347007850,1735464646643,-500.0,0.00010919,2]
[347007851,1735464646652,-814.67,0.00010919,2]
[347007852,1735464646661,-500.0,0.00010919,2]
[347007853,1735464646670,-500.0,0.00010919,2]
[347007854,1735464646679,-500.0,0.00010919,2]
[347007855,1735464646688,-500.0,0.00010919,2]
[347007856,1735464646697,-563.31,0.00010919,2]
[347007857,1735464646707,-6290.98,0.00010919,2]
[347007858,1735464646715,-500.0,0.00010919,2]
[347007859,1735464646724,-500.0,0.00010919,2]
[347007860,1735464646734,-500.0,0.00010919,2]
[347007861,1735464646743,-500.0,0.00010919,2]
[347007862,1735464646752,-500.0,0.00010919,2]
[347007863,1735464646761,-647.82,0.00010919,2]
[347007864,1735464646770,-500.0,0.0001092,2]
[347007865,1735464646779,-207.07360832,0.0001092,2]
[347007866,1735464646787,-500.0,0.0001092,2]
[347007867,1735464646796,-284.61,0.00010923,2]
[347007868,1735464646805,-500.0,0.00010923,2]
[347007869,1735464646815,-500.0,0.00010923,2]
[347007870,1735464646824,-500.0,0.00010923,2]
[347007871,1735464646834,-556.04,0.00010924,2]
[347007872,1735464646844,-500.0,0.00010924,2]
[347007873,1735464646854,-1173.84,0.00010924,2]
[347007874,1735464646862,-500.0,0.00010924,2]
[347007875,1735464646871,-2109.54,0.00010924,2]
[347007876,1735464646880,-2873.93020903,0.00011,2]
[347007877,1735464646890,-500.0,0.00011192,2]
[347007878,1735464646971,-682.69,0.00011192,2]
[347007879,1735464646981,-500.0,0.00011192,2]
[347007880,1735464646991,-500.0,0.00011192,2]
[347007881,1735464647000,-504.99972044,0.00011193,2]
[347007882,1735464647009,-500.0,0.00011193,2]
[347007883,1735464647018,-500.0,0.00011193,2]
[347007884,1735464647027,-500.0,0.00011193,2]
[347007885,1735464647036,-500.0,0.00011193,2]
[347007886,1735464647045,-500.0,0.00011193,2]
[347007887,1735464647055,-500.0,0.00011193,2]
[347007888,1735464647064,-500.0,0.00011193,2]
[347007889,1735464647073,-814.67,0.00011193,2]
[347007890,1735464647082,-500.0,0.00011193,2]
[347007891,1735464647094,-622.19788297,0.00011193,2]
[347007892,1735464647103,-563.31,0.00011193,2]
[347007893,1735464647111,-6290.98,0.00011193,2]
[347007894,1735464647121,-500.0,0.00011193,2]
[347007895,1735464647130,-500.0,0.00011193,2]
[347007896,1735464647139,-500.0,0.00011193,2]
[347007897,1735464647148,-500.0,0.00011193,2]
[347007898,1735464647157,-500.0,0.00011193,2]
[347007899,1735464647166,-647.82,0.00011193,2]
[347007900,1735464647175,-500.0,0.00011194,2]
[347007901,1735464647184,-314.85516418,0.00011194,2]
[347007902,1735464647194,-500.0,0.00011197,2]
[347007903,1735464647204,-500.0,0.00011197,2]
[347007904,1735464647213,-556.04,0.00011198,2]
[347007905,1735464647222,-1173.84,0.00011198,2]
[347007906,1735464647231,-581.51,0.00011198,2]
[347007907,1735464647240,-2109.54,0.00011198,2]
[347007908,1735464647249,-587.0,0.0001122,2]
[347007909,1735464647258,-500.0,0.00011466,2]
[347007910,1735464647267,-682.69,0.00011466,2]
[347007911,1735464647276,-500.0,0.00011466,2]
[347007912,1735464647285,-500.0,0.00011466,2]
[347007913,1735464647294,-642.94,0.00011467,2]
[347007914,1735464647303,-500.0,0.00011467,2]
[347007915,1735464647312,-500.0,0.00011467,2]
[347007916,1735464647321,-500.0,0.00011467,2]
[347007917,1735464647331,-500.0,0.00011467,2]
[347007918,1735464647341,-635.96,0.00011467,2]
[347007919,1735464647350,-814.67,0.00011467,2]
[347007920,1735464647359,-500.0,0.00011467,2]
[347007921,1735464647368,-563.31,0.00011467,2]
[347007922,1735464647379,-6290.98,0.00011467,2]
[347007923,1735464647389,-500.0,0.00011467,2]
[347007924,1735464647399,-500.0,0.00011467,2]
[347007925,1735464647408,-355.95,0.00011467,2]
[347007926,1735464647417,-508.47,0.00011467,2]
[347007927,1735464647426,-647.82,0.00011467,2]
[347007928,1735464647435,-500.0,0.00011471,2]
[347007929,1735464647444,-500.0,0.00011471,2]
[347007930,1735464647453,-556.04,0.00011472,2]
[347007931,1735464647464,-1173.84,0.00011472,2]
[347007932,1735464647474,-2109.54,0.00011472,2]
[347007933,1735464647485,-710.82968705,0.00011711,2]
[347007934,1735464647495,-682.69,0.0001174,2]
[347007935,1735464647505,-500.0,0.0001174,2]
[347007936,1735464647515,-500.0,0.0001174,2]
[347007937,1735464647524,-500.0,0.00011741,2]
[347007938,1735464647533,-500.0,0.00011741,2]
[347007939,1735464647543,-500.0,0.00011741,2]
[347007940,1735464647553,-814.67,0.00011741,2]
[347007941,1735464647563,-500.0,0.00011741,2]
[347007942,1735464647573,-563.31,0.00011741,2]
[347007943,1735464647583,-6290.98,0.00011741,2]
[347007944,1735464647593,-500.0,0.00011741,2]
[347007945,1735464647603,-500.0,0.00011741,2]
[347007946,1735464647612,-647.82,0.00011741,2]
[347007947,1735464647623,-500.0,0.00011745,2]
[347007948,1735464647631,-556.04,0.00011746,2]
[347007949,1735464647641,-1173.84,0.00011746,2]
[347007950,1735464647651,-2109.54,0.00011746,2]
[347007951,1735464647661,-241.26382564,0.00011925,2]
[347007952,1735464647671,-682.69,0.00012014,2]
[347007953,1735464647681,-500.0,0.00012014,2]
[347007954,1735464647691,-500.0,0.00012014,2]
[347007955,1735464647700,-500.0,0.00012015,2]
[347007956,1735464647710,-500.0,0.00012015,2]
[347007957,1735464647719,-500.0,0.00012015,2]
[347007958,1735464647728,-814.67,0.00012015,2]
[347007959,1735464647738,-500.0,0.00012015,2]
[347007960,1735464647748,-563.31,0.00012015,2]
[347007961,1735464647758,-6290.98,0.00012015,2]
[347007962,1735464647767,-500.0,0.00012015,2]
[347007963,1735464647776,-500.0,0.00012015,2]
[347007964,1735464647786,-647.82,0.00012015,2]
[347007965,1735464647796,-500.0,0.00012019,2]
[347007966,1735464647805,-556.04,0.0001202,2]
[347007967,1735464647815,-1173.84,0.0001202,2]
[347007968,1735464647825,-2109.54,0.0001202,2]
[347007969,1735464647834,-682.69,0.00012288,2]
[347007970,1735464647846,-500.0,0.00012288,2]
[347007971,1735464647855,-500.0,0.00012288,2]
[347007972,1735464647864,-529.48,0.00012289,2]
[347007973,1735464647874,-500.0,0.00012289,2]
[347007974,1735464647883,-179.10990732,0.00012289,2]
[347007975,1735464647892,-814.67,0.00012289,2]
[347007976,1735464647902,-558.64,0.00012289,2]
[347007977,1735464647911,-563.31,0.00012289,2]
[347007978,1735464647920,-6290.98,0.00012289,2]
[347007979,1735464647930,-500.0,0.00012289,2]
[347007980,1735464647939,-500.0,0.00012289,2]
[347007981,1735464647949,-647.82,0.00012289,2]
[347007982,1735464647959,-500.0,0.00012293,2]
[347007983,1735464647968,-500.0,0.00012293,2]
[347007984,1735464647978,-556.04,0.00012294,2]
[347007985,1735464647988,-1173.84,0.00012294,2]
[347007986,1735464647997,-2109.54,0.00012294,2]
[347007987,1735464648007,-416.32860369,0.000125,2]
[347007988,1735464648016,-682.69,0.00012562,2]
[347007989,1735464648025,-500.0,0.00012562,2]
[347007990,1735464648035,-614.48,0.00012562,2]
[347007991,1735464648045,-500.0,0.00012563,2]
[347007992,1735464648055,-814.67,0.00012563,2]
[347007993,1735464648065,-563.31,0.00012563,2]
[347007994,1735464648075,-6290.98,0.00012563,2]
[347007995,1735464648085,-500.0,0.00012563,2]
[347007996,1735464648100,-647.82,0.00012563,2]
[347007997,1735464648110,-500.0,0.00012567,2]
[347007998,1735464648120,-556.04,0.00012568,2]
[347007999,1735464648130,-1173.84,0.00012568,2]
[347008000,1735464648142,-2109.54,0.00012568,2]
[347008001,1735464648151,-682.69,0.00012836,2]
[347008002,1735464648161,-500.0,0.00012837,2]
[347008003,1735464648173,-814.67,0.00012837,2]
[347008004,1735464648183,-563.31,0.00012837,2]
[347008005,1735464648194,-6290.98,0.00012837,2]
[347008006,1735464648204,-500.0,0.00012837,2]
[347008007,1735464648214,-647.82,0.00012837,2]
[347008008,1735464648224,-500.0,0.00012841,2]
[347008009,1735464648233,-556.04,0.00012842,2]
[347008010,1735464648243,-1173.84,0.00012842,2]
[347008011,1735464648253,-2109.54,0.00012842,2]
[347008012,1735464648264,-169.27926821,0.000129,2]
[347008013,1735464648273,-169.27926817,0.000129,2]
[347008014,1735464648283,-682.69,0.0001311,2]
[347008015,1735464648293,-500.0,0.00013111,2]
[347008016,1735464648302,-814.67,0.00013111,2]
[347008017,1735464648311,-563.31,0.00013111,2]
[347008018,1735464648320,-6290.98,0.00013111,2]
[347008019,1735464648330,-500.0,0.00013111,2]
[347008020,1735464648340,-647.82,0.00013111,2]
[347008021,1735464648351,-556.04,0.00013116,2]
[347008022,1735464648361,-1173.84,0.00013116,2]
[347008023,1735464648370,-2109.54,0.00013116,2]
[347008024,1735464648379,-10281.1185884,0.00013204,2]
[347008025,1735464648390,-500.0,0.00013354,2]
[347008026,1735464648399,-682.69,0.00013384,2]
[347008027,1735464648409,-185.9,0.00013385,2]
[347008028,1735464648418,-814.67,0.00013385,2]
[347008029,1735464648428,-563.31,0.00013385,2]
[347008030,1735464648437,-6290.98,0.00013385,2]
[347008031,1735464648447,-473.64,0.00013385,2]
[347008032,1735464648456,-647.82,0.00013385,2]
[347008033,1735464648466,-556.04,0.0001339,2]
[347008034,1735464648475,-1173.84,0.0001339,2]
[347008035,1735464648485,-2109.54,0.0001339,2]
[347008036,1735464648494,-682.69,0.00013658,2]
[347008037,1735464648503,-814.67,0.00013659,2]
[347008038,1735464648513,-563.31,0.00013659,2]
[347008039,1735464648522,-6290.98,0.00013659,2]
[347008040,1735464648531,-647.82,0.00013659,2]
[347008041,1735464648541,-286.315,0.00013661,2]
[347008042,1735464648551,-556.04,0.00013664,2]
[347008043,1735464648560,-1173.84,0.00013664,2]
[347008044,1735464648569,-2109.54,0.00013664,2]
[347008045,1735464648578,-169.27926817,0.00013831,2]
[347008046,1735464648587,-682.69,0.00013932,2]
[347008047,1735464648598,-814.67,0.00013933,2]
[347008048,1735464648607,-563.31,0.00013933,2]
[347008049,1735464648616,-6290.98,0.00013933,2]
[347008050,1735464648627,-647.82,0.00013933,2]
[347008051,1735464648635,-556.04,0.00013938,2]
[347008052,1735464648645,-1173.84,0.00013938,2]
[347008053,1735464648654,-2109.54,0.00013938,2]
[347008054,1735464648664,-400.0,0.00013973,2]
[347008055,1735464648673,-682.69,0.00014206,2]
[347008056,1735464648682,-814.67,0.00014207,2]
[347008057,1735464648692,-563.31,0.00014207,2]
[347008058,1735464648701,-6290.98,0.00014207,2]
[347008059,1735464648710,-647.82,0.00014207,2]
[347008060,1735464648719,-556.04,0.00014212,2]
[347008061,1735464648728,-1173.84,0.00014212,2]
[347008062,1735464648737,-2109.54,0.00014212,2]
[347008063,1735464648747,-682.69,0.0001448,2]
[347008064,1735464648756,-814.67,0.00014481,2]
[347008065,1735464648765,-563.31,0.00014481,2]
[347008066,1735464648845,-6290.98,0.00014481,2]
[347008067,1735464648855,-647.82,0.00014481,2]
[347008068,1735464648864,-5080.79877236,0.00014485,2]
[347008069,1735464648874,-22242.01156133,0.00014485,2]
[347008070,1735464648994,-670.17,0.00010375,2]
[347008071,1735464649003,-1769.31,0.00010921,2]
[347008072,1735464649013,-7095.17248163,0.00014485,2]
[347008073,1735464649116,-176.62701295,9.274e-05,2]
[347008074,1735464649125,-500.0,9.276e-05,2]
[347008075,1735464649135,-670.17,0.00010649,2]
[347008076,1735464649144,-670.17,0.00010923,2]
[347008077,1735464649154,-1769.31,0.00011195,2]
[347008078,1735464649163,-670.17,0.00011197,2]
[347008079,1735464649174,-1769.31,0.00011469,2]
[347008080,1735464649183,-670.17,0.00011471,2]
[347008081,1735464649193,-1769.31,0.00011743,2]
[347008082,1735464649202,-1769.31,0.00012017,2]
[347008083,1735464649211,-6607.13815352,0.00014485,2]
[347008084,1735464649223,-3401.37,0.00014485,2]
[347008085,1735464649235,-7225.29349449,0.00014485,2]
[347008086,1735464649244,-531.34893495,0.00014486,2]
[347008087,1735464649255,-24.69106505,0.00014486,2]
[347008088,1735464649265,-1173.84,0.00014486,2]
[347008089,1735464649274,-580.63893495,0.00014486,2]
[347008090,1735464649430,-500.0,9.276e-05,2]
[347008091,1735464649440,-670.17,0.00011745,2]
[347008092,1735464649448,-670.17,0.00012019,2]
[347008093,1735464649458,-1769.31,0.00012291,2]
[347008094,1735464649467,-670.17,0.00012293,2]
[347008095,1735464649476,-1769.31,0.00012565,2]
[347008096,1735464649486,-670.17,0.00012567,2]
[347008097,1735464649494,-1769.31,0.00012839,2]
[347008098,1735464649504,-406.92704999,0.00012841,2]
[347008099,1735464649515,-263.24295001,0.00012841,2]
[347008100,1735464649524,-1769.31,0.00013113,2]
[347008101,1735464649533,-1769.31,0.00013387,2]
[347008102,1735464649543,-1769.31,0.00013661,2]
[347008103,1735464649552,-1528.90106505,0.00014486,2]
[347008104,1735464649561,-241.26382564,0.00014675,2]
[347008105,1735464649571,-682.69,0.00014754,2]
[347008106,1735464649580,-814.67,0.00014755,2]
[347008107,1735464649590,-563.31,0.00014755,2]
[347008108,1735464649601,-4680.64513596,0.00014755,2]
[347008109,1735464649612,-1610.33486404,0.00014755,2]
[347008110,1735464649621,-647.82,0.00014755,2]
[347008111,1735464649630,-556.04,0.0001476,2]
[347008112,1735464649639,-1173.84,0.0001476,2]
[347008113,1735464649649,-2109.54,0.0001476,2]
[347008114,1735464649659,-682.69,0.00015028,2]
[347008115,1735464649668,-814.67,0.00015029,2]
[347008116,1735464649677,-534.70513596,0.00015029,2]
[347008117,1735464649690,-28.60486404,0.00015029,2]
[347008118,1735464649701,-6290.98,0.00015029,2]
[347008119,1735464649710,-647.82,0.00015029,2]
[347008120,1735464649721,-556.04,0.00015034,2]
[347008121,1735464649731,-1173.84,0.00015034,2]
[347008122,1735464649741,-114.84125616,0.00015034,2]
[347008126,1735465163676,300.0,8.997e-05,2]
[347008130,1735465342105,9700.0,8.275e-05,2]
[347008131,1735465342137,10000.0,8.275e-05,2]
[347008132,1735465342169,5200.0,8.275e-05,2]
[347008133,1735465362066,300.0,8.996e-05,2]
[347008134,1735465377319,300.0,8.996e-05,2]
[347008137,1735465535182,-300.0,9.087e-05,2]
[347008138,1735465535204,-174.61626766,9.179e-05,2]
[347008139,1735465539106,-125.38373234,9.179e-05,2]
[347008140,1735465539127,-300.0,9.272e-05,2]
[347008141,1735465539149,-500.0,9.272e-05,2]
[347008142,1735465539172,-500.0,9.272e-05,2]
[347008143,1735465539197,-500.0,9.273e-05,2]
[347008144,1735465539222,-317.92437867,9.273e-05,2]
[347008145,1735465539243,-500.0,9.273e-05,2]
[347008146,1735465539264,-173.23523063,9.273e-05,2]
[347008148,1735465627087,-277.99055866,9.088e-05,2]
[347008149,1735465638218,-1540.33432056,9.088e-05,2]
[347008150,1735465647197,-804.69753068,9.088e-05,2]
[347008151,1735465647218,-199.55994379,9.18e-05,2]
[347008153,1735465739579,-1259.31604283,9.088e-05,2]
[347008154,1735465739630,-409.7426267,9.088e-05,2]
[347008155,1735465750097,-1505.5544,9.088e-05,2]
[347008156,1735465761351,-247.9496751,9.079e-05,2]
[347008157,1735465761376,-421.41326654,9.088e-05,2]
[347008158,1735465761400,-300.0,9.271e-05,2]
[347008159,1735465761426,-500.0,9.272e-05,2]
[347008160,1735465761454,-500.0,9.272e-05,2]
[347008161,1735465761481,-500.0,9.272e-05,2]
[347008162,1735465761506,-500.0,9.272e-05,2]
[347008163,1735465761532,-425.65162135,9.272e-05,2]
[347008164,1735465761556,-500.0,9.272e-05,2]
[347008165,1735465761704,-500.0,9.272e-05,2]
[347008166,1735465761729,-500.0,9.272e-05,2]
[347008167,1735465761753,-165.78514444,9.272e-05,2]
[347008168,1735465761777,-500.0,9.272e-05,2]
[347008169,1735465761800,-480.66541816,9.272e-05,2]
[347008170,1735465761825,-500.0,9.272e-05,2]
[347008171,1735465761851,-500.0,9.273e-05,2]
[347008172,1735465761874,-503.09759545,9.273e-05,2]
[347008173,1735465761898,-500.0,9.273e-05,2]
[347008174,1735465761921,-500.0,9.273e-05,2]
[347008175,1735465761944,-500.0,9.273e-05,2]
[347008176,1735465761966,-500.0,9.273e-05,2]
[347008177,1735465761988,-597.24781219,9.273e-05,2]
[347008178,1735465762011,-500.0,9.273e-05,2]
[347008179,1735465762035,-500.0,9.273e-05,2]
[347008180,1735465762057,-509.49779852,9.273e-05,2]
[347008181,1735465762080,-500.0,9.273e-05,2]
[347008182,1735465762102,-500.0,9.273e-05,2]
[347008183,1735465762124,-500.0,9.273e-05,2]
[347008184,1735465762147,-500.0,9.273e-05,2]
[347008185,1735465762171,-500.0,9.273e-05,2]
[347008186,1735465762193,-500.0,9.273e-05,2]
[347008187,1735465762215,-500.0,9.273e-05,2]
[347008188,1735465762238,-500.0,9.273e-05,2]
[347008189,1735465762261,-500.0,9.273e-05,2]
[347008190,1735465762286,-500.0,9.273e-05,2]
[347008191,1735465762308,-500.0,9.273e-05,2]
[347008192,1735465762331,-500.0,9.273e-05,2]
[347008193,1735465762353,-500.0,9.273e-05,2]
[347008194,1735465762375,-500.0,9.273e-05,2]
[347008195,1735465762399,-500.0,9.273e-05,2]
[347008196,1735465762422,-500.0,9.273e-05,2]
[347008197,1735465762452,-227.8361117,9.273e-05,2]
[347008198,1735465762476,-500.0,9.273e-05,2]
[347008199,1735465762501,-500.0,9.273e-05,2]
[347008200,1735465762524,-500.0,9.273e-05,2]
[347008201,1735465762547,-500.0,9.273e-05,2]
[347008202,1735465762570,-500.0,9.273e-05,2]
[347008203,1735465762592,-500.35960456,9.273e-05,2]
[347008204,1735465762616,-500.0,9.273e-05,2]
[347008205,1735465762640,-500.0,9.273e-05,2]
[347008206,1735465762667,-500.0,9.273e-05,2]
[347008207,1735465762692,-615.16651428,9.273e-05,2]
[347008208,1735465762717,-500.0,9.273e-05,2]
[347008209,1735465762741,-500.0,9.273e-05,2]
[347008210,1735465762765,-500.0,9.273e-05,2]
[347008211,1735465762788,-500.0,9.273e-05,2]
[347008212,1735465762810,-241.17350799,9.273e-05,2]
[347008213,1735465762835,-500.0,9.273e-05,2]
[347008214,1735465762860,-500.0,9.273e-05,2]
[347008215,1735465762885,-663.85,9.273e-05,2]
[347008216,1735465762910,-500.0,9.273e-05,2]
[347008217,1735465762932,-500.0,9.273e-05,2]
[347008218,1735465762955,-500.0,9.273e-05,2]
[347008219,1735465762977,-500.0,9.273e-05,2]
[347008220,1735465762999,-500.0,9.273e-05,2]
[347008221,1735465763023,-500.0,9.273e-05,2]
[347008222,1735465763045,-500.0,9.273e-05,2]
[347008223,1735465763067,-543.2916063,9.273e-05,2]
[347008224,1735465763090,-500.0,9.273e-05,2]
[347008225,1735465763119,-500.0,9.273e-05,2]
[347008226,1735465763143,-500.0,9.273e-05,2]
[347008227,1735465763167,-500.0,9.273e-05,2]
[347008228,1735465763191,-500.0,9.273e-05,2]
[347008229,1735465763214,-500.0,9.273e-05,2]
[347008230,1735465763238,-500.0,9.273e-05,2]
[347008231,1735465763263,-500.0,9.273e-05,2]
[347008232,1735465763286,-500.0,9.273e-05,2]
[347008233,1735465763310,-500.0,9.273e-05,2]
[347008234,1735465763333,-500.0,9.273e-05,2]
[347008235,1735465763358,-500.0,9.273e-05,2]
[347008236,1735465763382,-548.7,9.273e-05,2]
[347008237,1735465763407,-500.0,9.273e-05,2]
[347008238,1735465763431,-500.0,9.273e-05,2]
[347008239,1735465763463,-500.0,9.273e-05,2]
[347008240,1735465763489,-500.0,9.273e-05,2]
[347008241,1735465763512,-500.0,9.273e-05,2]
[347008242,1735465763535,-500.0,9.273e-05,2]
[347008243,1735465763559,-500.0,9.273e-05,2]
[347008244,1735465763582,-500.0,9.273e-05,2]
[347008245,1735465763605,-500.0,9.273e-05,2]
[347008246,1735465763628,-500.0,9.273e-05,2]
[347008247,1735465763650,-500.0,9.273e-05,2]
[347008248,1735465763673,-500.0,9.273e-05,2]
[347008249,1735465763696,-500.0,9.273e-05,2]
[347008250,1735465763719,-500.0,9.273e-05,2]
[347008251,1735465763742,-500.0,9.273e-05,2]
[347008252,1735465763766,-500.0,9.273e-05,2]
[347008253,1735465763791,-500.0,9.273e-05,2]
[347008254,1735465763815,-500.0,9.273e-05,2]
[347008255,1735465763839,-500.0,9.273e-05,2]
[347008256,1735465763863,-500.0,9.273e-05,2]
[347008257,1735465763887,-500.0,9.273e-05,2]
[347008258,1735465763911,-500.0,9.273e-05,2]
[347008259,1735465763936,-500.0,9.273e-05,2]
[347008260,1735465763958,-500.0,9.273e-05,2]
[347008261,1735465763981,-500.0,9.273e-05,2]
[347008262,1735465764005,-500.0,9.273e-05,2]
[347008263,1735465764029,-500.0,9.273e-05,2]
[347008264,1735465764055,-665.78,9.273e-05,2]
[347008265,1735465764080,-520.42628022,9.273e-05,2]
[347008266,1735465764104,-502.05383504,9.273e-05,2]
[347008267,1735465764128,-500.0,9.273e-05,2]
[347008268,1735465764152,-500.0,9.273e-05,2]
[347008269,1735465764175,-500.0,9.273e-05,2]
[347008270,1735465764198,-500.0,9.273e-05,2]
[347008271,1735465764220,-188.69373556,9.273e-05,2]
[347008272,1735465764244,-500.0,9.273e-05,2]
[347008273,1735465764270,-504.06530436,9.273e-05,2]
[347008274,1735465764296,-500.0,9.273e-05,2]
[347008275,1735465764321,-500.0,9.273e-05,2]
[347008276,1735465764344,-500.0,9.273e-05,2]
[347008277,1735465764367,-500.0,9.273e-05,2]
[347008278,1735465764393,-500.0,9.273e-05,2]
[347008279,1735465764502,-501.61024466,9.273e-05,2]
[347008280,1735465764530,-500.0,9.273e-05,2]
[347008281,1735465764555,-500.0,9.273e-05,2]
[347008282,1735465764579,-500.0,9.273e-05,2]
[347008283,1735465764602,-160.69660295,9.273e-05,2]
[347008284,1735465764627,-526.75,9.273e-05,2]
[347008285,1735465764649,-500.0,9.274e-05,2]
[347008286,1735465764672,-500.0,9.274e-05,2]
[347008287,1735465764694,-500.0,9.274e-05,2]
[347008288,1735465764717,-500.0,9.274e-05,2]
[347008289,1735465764741,-500.0,9.274e-05,2]
[347008290,1735465764766,-500.0,9.274e-05,2]
[347008291,1735465764788,-500.0,9.274e-05,2]
[347008292,1735465764812,-500.0,9.274e-05,2]
[347008293,1735465764835,-500.0,9.274e-05,2]
[347008294,1735465764859,-500.0,9.274e-05,2]
[347008295,1735465764882,-500.0,9.274e-05,2]
[347008296,1735465764905,-500.0,9.274e-05,2]
[347008297,1735465764928,-500.0,9.274e-05,2]
[347008298,1735465764951,-500.78719065,9.274e-05,2]
[347008299,1735465764975,-500.0,9.274e-05,2]
[347008300,1735465764998,-500.0,9.274e-05,2]
[347008301,1735465765024,-500.0,9.274e-05,2]
[347008302,1735465765047,-500.0,9.274e-05,2]
[347008303,1735465765071,-500.0,9.274e-05,2]
[347008304,1735465765095,-500.0,9.274e-05,2]
[347008305,1735465765119,-500.0,9.274e-05,2]
[347008306,1735465765143,-500.0,9.274e-05,2]
[347008307,1735465765168,-500.0,9.274e-05,2]
[347008308,1735465765192,-500.0,9.274e-05,2]
[347008309,1735465765218,-500.0,9.274e-05,2]
[347008310,1735465765243,-645.54070861,9.274e-05,2]
[347008311,1735465765270,-500.0,9.274e-05,2]
[347008312,1735465765296,-500.0,9.274e-05,2]
[347008313,1735465765320,-500.0,9.274e-05,2]
[347008314,1735465765346,-500.0,9.274e-05,2]
[347008315,1735465765372,-500.0,9.274e-05,2]
[347008316,1735465765399,-500.0,9.274e-05,2]
[347008317,1735465765424,-500.0,9.274e-05,2]
[347008318,1735465765452,-500.0,9.274e-05,2]
[347008319,1735465765478,-500.0,9.274e-05,2]
[347008320,1735465765504,-500.0,9.274e-05,2]
[347008321,1735465765530,-500.0,9.274e-05,2]
[347008322,1735465765553,-500.0,9.274e-05,2]
[347008323,1735465765577,-500.0,9.274e-05,2]
[347008324,1735465765599,-500.0,9.274e-05,2]
[347008325,1735465765621,-500.0,9.274e-05,2]
[347008326,1735465765644,-500.0,9.274e-05,2]
[347008327,1735465765666,-500.0,9.274e-05,2]
[347008328,1735465765689,-500.0,9.274e-05,2]
[347008329,1735465765712,-6459.82,9.274e-05,2]
[347008330,1735465765734,-500.0,9.274e-05,2]
[347008331,1735465765758,-500.0,9.274e-05,2]
[347008332,1735465765780,-500.0,9.274e-05,2]
[347008333,1735465765803,-500.0,9.274e-05,2]
[347008334,1735465765825,-500.0,9.274e-05,2]
[347008335,1735465765847,-634.2945631,9.274e-05,2]
[347008336,1735465765870,-500.0,9.274e-05,2]
[347008337,1735465765892,-500.0,9.274e-05,2]
[347008338,1735465765914,-500.0,9.274e-05,2]
[347008339,1735465765938,-769.91,9.274e-05,2]
[347008340,1735465765960,-370.15980533,9.274e-05,2]
[347008341,1735465765982,-500.0,9.275e-05,2]
[347008342,1735465766005,-500.0,9.275e-05,2]
[347008343,1735465766028,-500.0,9.275e-05,2]
[347008344,1735465766052,-408.76101797,9.275e-05,2]
[347008345,1735465766076,-500.0,9.275e-05,2]
[347008346,1735465766100,-500.0,9.275e-05,2]
[347008347,1735465766125,-500.0,9.275e-05,2]
[347008348,1735465766149,-500.0,9.275e-05,2]
[347008349,1735465766174,-500.0,9.275e-05,2]
[347008350,1735465766198,-500.0,9.275e-05,2]
[347008351,1735465766227,-500.0,9.275e-05,2]